bitfinex/quotes_SOLUSD_20240829
["timestamp","ask_amount","ask_price","bid_price","bid_amount"]
[1724909777205,6.9412,144.07,144.03,6.9429]
[1724909778113,19.94670377,144.08,144.04,6.9423]
[1724909778990,6.9402,144.09,144.04,6.9423]
[1724909779196,17.3471,144.12,144.02,29.18320377]
[1724909779197,20.0,144.08,144.02,29.18320377]
[1724909779395,13.00600377,144.12,144.02,29.18320377]
[1724909779396,20.0,144.11,144.02,29.18320377]
[1724909779593,6.9392,144.11,144.07,6.9409]
[1724909780715,6.9392,144.11,144.02,29.18320377]
[1724909780716,6.9396,144.1,144.06,6.9413]
[1724909781515,6.9391,144.11,144.07,6.941]
[1724909781709,20.0,144.1,144.07,6.941]
[1724909782398,20.0,144.11,144.07,6.941]
[1724909782650,20.0,144.11,144.08,6.9402]
[1724909782792,26.9387,144.12,144.08,6.9402]
[1724909783307,20.0,144.12,144.08,6.9402]
[1724909784516,20.0,144.12,144.07,1.38799013]
[1724909784819,26.938,144.14,144.1,6.9395]
[1724909785897,35.97450377,144.15,144.1,6.9395]
[1724909786216,19.94330377,144.15,144.1,6.9395]
[1724909786806,6.9373,144.15,144.1,6.9395]
[1724909787313,20.0,144.14,144.1,6.9395]
[1724909788601,20.0,144.14,144.11,6.9391]
[1724909790201,26.9378,144.14,144.1,6.9394]
[1724909790421,13.00600377,144.13,144.07,15.4382]
[1724909790601,19.94420377,144.13,144.08,6.9404]
[1724909791499,6.9388,144.12,144.07,22.3791]
[1724909791700,13.00600377,144.11,144.07,6.9409]
[1724909791923,13.00600377,144.09,144.05,6.9416]
[1724909792115,13.00600377,144.11,144.06,6.9415]
[1724909792427,0.12549,144.12,144.03,28.86100377]
[1724909792626,65.12549,144.12,144.03,28.86100377]
[1724909792918,65.12549,144.12,144.04,1.38606896]
[1724909794224,72.06419,144.12,144.07,6.9409]
[1724909797022,20.0,144.12,144.08,6.9405]
[1724909797717,13.00600377,144.11,144.03,15.855]
[1724909797924,6.9396,144.1,144.05,6.9416]
[1724909798302,6.9396,144.1,144.06,6.9414]
[1724909798501,19.94520377,144.11,144.06,6.9414]
[1724909798698,19.94520377,144.11,144.07,6.9409]
[1724909800606,20.0,144.12,144.03,28.86100377]
[1724909800810,20.0,144.12,144.08,6.9402]
[1724909802311,26.9386,144.12,144.08,6.9402]
[1724909803828,20.0,144.12,144.05,13.00600377]
[1724909804144,21.456,144.16,144.07,13.00600377]
[1724909804438,20.0,144.15,144.07,13.00600377]
[1724909804611,26.9373,144.15,144.1,6.9392]
[1724909805166,6.9373,144.15,144.11,6.939]
[1724909806936,16.3767,144.21,144.1,15.3211]
[1724909807143,16.3767,144.21,144.11,13.00600377]
[1724909807317,6.9348,144.2,144.11,13.00600377]
[1724909807511,6.9348,144.2,144.13,13.00600377]
[1724909808333,6.9348,144.2,144.16,6.9365]
[1724909808725,20.0,144.19,144.16,6.9365]
[1724909808930,20.0,144.19,144.14,6.9373]
[1724909809140,13.00600377,144.19,144.14,6.9373]
[1724909809342,20.0,144.18,144.14,6.9373]
[1724909811726,20.0,144.18,144.16,6.9365]
[1724909811927,26.9348,144.2,144.16,6.9365]
[1724909812442,6.9355,144.19,144.15,6.937]
[1724909812658,20.0,144.18,144.15,6.937]
[1724909817346,29.38270377,144.21,144.11,13.00600377]
[1724909817646,16.3767,144.21,144.17,6.9362]
[1724909817948,20.0,144.2,144.17,6.9362]
[1724909819945,20.0,144.21,144.17,6.9362]
[1724909820936,20.0,144.21,144.18,6.9357]
[1724909821325,20.0,144.21,144.19,6.9352]
[1724909821542,20.0,144.23,144.15,28.04580377]
[1724909821723,26.9334,144.23,144.19,6.9351]
[1724909822047,19.93750377,144.27,144.17,13.00600377]
[1724909822462,15.6657,144.29,144.2,16.4365]
[1724909822754,13.00600377,144.31,144.21,58.25698377]
[1724909823340,19.93570377,144.31,144.21,58.25698377]
[1724909824035,19.93560377,144.31,144.21,58.25698377]
[1724909824439,6.9301,144.3,144.21,58.25698377]
[1724909825551,20.0,144.29,144.21,58.25698377]
[1724909826441,20.0,144.29,144.21,45.25098]
[1724909826653,20.0,144.3,144.22,13.00600377]
[1724909827025,6.9296,144.31,144.22,13.00600377]
[1724909828046,6.9296,144.31,144.23,0.25098]
[1724909828439,6.9296,144.31,144.24,6.454]
[1724909829446,50.0,144.37,144.25,16.4427]
[1724909829642,78.25698377,144.35,144.25,16.4427]
[1724909829955,6.9289,144.33,144.25,16.4427]
[1724909830140,20.0,144.32,144.25,16.4427]
[1724909832231,20.0,144.32,144.26,1.38612104]
[1724909834551,45.12549,144.35,144.27,0.12549]
[1724909834552,6.9279,144.35,144.27,0.12549]
[1724909834732,20.0,144.34,144.27,0.25098]
[1724909838446,6.9258,144.39,144.3,13.00600377]
[1724909838644,6.9258,144.39,144.31,1.3854811]
[1724909839233,19.93210377,144.38,144.31,1.3854811]
[1724909839439,13.00600377,144.36,144.29,23.0536]
[1724909839658,19.93320377,144.36,144.29,23.0536]
[1724909839844,13.00600377,144.36,144.29,23.0536]
[1724909840560,6.926,144.39,144.3,34.73910377]
[1724909840857,6.926,144.39,144.31,0.25098]
[1724909841234,6.9262,144.38,144.31,0.12549]
[1724909841435,19.93220377,144.38,144.3,34.73910377]
[1724909841945,20.0,144.37,144.3,34.73910377]
[1724909842148,20.0,144.37,144.31,0.99469911]
[1724909842870,13.00600377,144.41,144.31,0.99469911]
[1724909843156,20.0,144.4,144.31,0.99469911]
[1724909843453,26.9252,144.4,144.31,0.99469911]
[1724909843859,6.9258,144.39,144.31,0.99469911]
[1724909844047,20.0,144.38,144.31,0.99469911]
[1724909846870,26.9262,144.38,144.3,21.7331]
[1724909848242,26.9262,144.38,144.31,0.12549]
[1724909848571,26.9262,144.38,144.31,0.25098]
[1724909848866,20.0,144.38,144.31,0.25098]
[1724909850767,20.0,144.38,144.31,1.6365125]
[1724909851662,20.0,144.38,144.31,14.64251627]
[1724909854272,19.93180377,144.39,144.31,14.64251627]
[1724909859777,320.5062,144.46,144.32,16.474]
[1724909859965,13.00600377,144.41,144.33,45.25098]
[1724909860165,20.0,144.4,144.33,45.25098]
[1724909860560,20.0,144.4,144.33,0.25098]
[1724909861476,26.9252,144.4,144.33,0.25098]
[1724909861978,26.9252,144.4,144.33,0.12549]
[1724909862176,26.9252,144.4,144.32,16.474]
[1724909863262,20.0,144.4,144.33,13.00600377]
[1724909863468,13.00600377,144.42,144.33,13.00600377]
[1724909863783,20.0,144.41,144.33,13.00600377]
[1724909864084,26.9251,144.41,144.33,13.00600377]
[1724909866566,6.9267,144.37,144.32,16.474]
[1724909866885,13.00600377,144.38,144.32,16.474]
[1724909867685,19.93220377,144.38,144.32,16.474]
[1724909870088,13.00600377,144.38,144.32,16.474]
[1724909872284,19.93240377,144.38,144.32,16.474]
[1724909872479,6.927,144.37,144.32,16.474]
[1724909873584,19.93220377,144.38,144.32,16.474]
[1724909874868,6.927,144.37,144.32,16.474]
[1724909875574,6.9272,144.36,144.32,16.474]
[1724909876482,13.00600377,144.42,144.33,6.0994]
[1724909877167,6.9248,144.41,144.33,6.0994]
[1724909880372,19.93030377,144.42,144.33,6.0994]
[1724909880574,20.0,144.41,144.33,19.10540377]
[1724909882704,20.0,144.41,144.34,61.0884]
[1724909882997,13.00600377,144.42,144.35,0.12549]
[1724909883982,19.93070377,144.42,144.34,16.21389]
[1724909884181,19.93070377,144.42,144.34,16.0884]
[1724909885277,13.00600377,144.4,144.34,16.0884]
[1724909886296,19.93030377,144.42,144.34,16.0884]
[1724909886498,20.0,144.41,144.34,17.4738085]
[1724909888396,26.9248,144.41,144.34,16.0884]
[1724909889386,26.9248,144.41,144.34,17.47384754]
[1724909889785,26.9248,144.41,144.34,16.0884]
[1724909889999,20.05699377,144.4,144.34,16.0884]
[1724909890192,26.9248,144.41,144.34,16.0884]
[1724909890503,13.00600377,144.4,144.34,16.0884]
[1724909893896,19.93130377,144.4,144.34,16.0884]
[1724909895103,20.0,144.41,144.34,16.0884]
[1724909896390,26.9249,144.41,144.34,16.0884]
[1724909896601,6.9257,144.39,144.34,16.0884]
[1724909897105,13.00600377,144.4,144.34,16.0884]
[1724909897106,6.9263,144.38,144.34,16.0884]
[1724909897288,19.93230377,144.38,144.34,16.0884]
[1724909898905,6.9268,144.37,144.34,16.0884]
[1724909899211,19.93220377,144.38,144.34,16.0884]
[1724909899595,13.00600377,144.38,144.34,16.0884]
[1724909899909,13.00600377,144.4,144.34,16.0884]
[1724909901710,26.9248,144.41,144.34,16.0884]
[1724909902396,20.0,144.41,144.34,16.0884]
[1724909903907,13.00600377,144.4,144.34,16.0884]
[1724909906422,6.9259,144.39,144.34,16.0884]
[1724909907523,19.93130377,144.4,144.34,16.0884]
[1724909910199,13.00600377,144.38,144.34,16.0884]
[1724909910805,6.9253,144.4,144.34,16.0884]
[1724909911126,19.93130377,144.4,144.34,16.0884]
[1724909912019,6.9258,144.39,144.34,16.0884]
[1724909913606,13.00600377,144.38,144.34,16.0884]
[1724909913821,6.9258,144.39,144.34,16.0884]
[1724909921812,19.93180377,144.39,144.34,16.0884]
[1724909922535,6.9258,144.39,144.34,16.0884]
[1724909922716,19.93180377,144.39,144.34,16.0884]
[1724909924914,7.05179,144.38,144.34,16.0884]
[1724909925613,0.12549,144.38,144.34,16.0884]
[1724909925816,45.12549,144.38,144.34,16.0884]
[1724909926123,45.12549,144.38,144.3,16.3402]
[1724909926124,13.00600377,144.35,144.3,16.3402]
[1724909926433,13.00600377,144.37,144.31,1.38492198]
[1724909926837,20.0,144.36,144.3,17.72512198]
[1724909927134,20.0,144.36,144.3,16.3402]
[1724909927723,20.0,144.36,144.3,17.72604061]
[1724909929818,26.9271,144.36,144.3,17.72604061]
[1724909930016,26.9271,144.36,144.3,16.3402]
[1724909930734,39.93310377,144.36,144.3,16.3402]
[1724909931816,41.14084207,144.36,144.3,16.3402]
[1724909932014,6.9277,144.35,144.3,16.3402]
[1724909932915,41.14094207,144.36,144.3,16.3402]
[1724909938948,13.00600377,144.34,144.3,16.3402]
[1724909940029,19.93410377,144.34,144.3,16.3402]
[1724909940428,19.93540377,144.32,144.29,6.2178]
[1724909940946,13.00600377,144.32,144.29,6.2178]
[1724909941842,19.93500377,144.32,144.27,15.0305]
[1724909942434,13.00600377,144.32,144.27,15.0305]
[1724909942653,6.9287,144.33,144.27,15.0305]
[1724909942946,6.9281,144.34,144.27,15.0305]
[1724909943149,20.0,144.33,144.27,15.0305]
[1724909943346,41.14094207,144.36,144.27,15.0305]
[1724909945449,6.9276,144.35,144.27,15.0305]
[1724909945756,6.9268,144.37,144.29,16.0543]
[1724909946850,6.9271,144.36,144.29,16.0543]
[1724909947033,19.93310377,144.36,144.29,16.0543]
[1724909947654,19.93280377,144.37,144.29,16.0543]
[1724909947834,20.0,144.36,144.29,16.0543]
[1724909948551,1.33306994,144.38,144.31,29.58770377]
[1724909948552,1.20757994,144.38,144.31,29.58770377]
[1724909948740,13.00600377,144.4,144.31,29.58770377]
[1724909948936,13.00600377,144.38,144.31,16.5817]
[1724909949140,19.93230377,144.38,144.31,16.5817]
[1724909949542,13.00600377,144.38,144.31,17.48656095]
[1724909954142,13.00600377,144.38,144.31,16.5817]
[1724909954342,13.00600377,144.38,144.31,17.96738771]
[1724909955947,6.9258,144.39,144.32,6.1167]
[1724909956153,8.13267978,144.4,144.33,17.63759819]
[1724909956359,20.0,144.39,144.33,17.63759819]
[1724909957442,1.20737978,144.4,144.33,17.63759819]
[1724909957443,20.0,144.4,144.33,17.63759819]
[1724909963251,20.0,144.4,144.33,16.252]
[1724909963454,33.00600377,144.4,144.33,16.252]
[1724909964771,13.00600377,144.38,144.33,16.252]
[1724909969373,26.9252,144.4,144.33,16.252]
[1724909969573,13.00600377,144.38,144.33,16.252]
[1724909970658,13.00600377,144.36,144.33,16.252]
[1724909970865,19.93310377,144.36,144.33,16.252]
[1724909971964,19.93310377,144.36,144.32,6.1167]
[1724909972163,19.93310377,144.36,144.29,23.24]
[1724909973951,6.9276,144.35,144.29,23.24]
[1724909975176,19.93310377,144.36,144.29,23.24]
[1724909979171,13.00600377,144.36,144.29,23.24]
[1724909981978,19.93310377,144.36,144.29,23.24]
[1724909988463,13.00600377,144.36,144.29,23.24]
[1724909988861,19.93320377,144.36,144.29,23.24]
[1724909989271,6.9272,144.36,144.29,23.24]
[1724909989459,19.93320377,144.36,144.29,23.24]
[1724909991063,1.2076725,144.37,144.32,6.0414]
[1724909991260,19.93080377,144.41,144.32,6.0414]
[1724909991462,19.93080377,144.41,144.33,1.38553089]
[1724909991766,19.93080377,144.41,144.32,7.42693089]
[1724909991963,13.00600377,144.39,144.32,7.42693089]
[1724909992981,13.00600377,144.39,144.32,6.0414]
[1724909994960,19.93180377,144.39,144.32,6.0414]
[1724909995296,13.00600377,144.39,144.32,6.0414]
[1724909997889,13.00600377,144.39,144.33,1.38471815]
[1724909998390,19.93080377,144.41,144.33,1.38471815]
[1724909998568,20.0,144.4,144.33,1.38471815]
[1724909999078,20.0,144.4,144.32,6.0414]
[1724909999659,20.0,144.4,144.33,15.1646]
[1724910000884,26.9253,144.4,144.33,15.1646]
[1724910005588,26.9253,144.4,144.33,16.55004845]
[1724910006282,31.72135805,144.43,144.33,16.55004845]
[1724910006479,8.13123562,144.43,144.33,29.55605222]
[1724910006673,20.0,144.42,144.34,6.4525]
[1724910006876,20.0,144.42,144.35,1.38525649]
[1724910007700,20.0,144.42,144.34,6.4525]
[1724910008287,20.0,144.42,144.35,30.57336859]
[1724910008470,26.9233,144.44,144.36,1.38296901]
[1724910008889,6.9233,144.44,144.36,1.38296901]
[1724910009491,19.92930377,144.44,144.36,1.38296901]
[1724910009996,1.2069729,144.45,144.37,6.312]
[1724910010199,1.2069729,144.45,144.38,1.38277743]
[1724910010370,19.92820377,144.47,144.38,1.38277743]
[1724910010696,13.00600377,144.45,144.37,22.9453]
[1724910010891,13.00600377,144.45,144.38,1.38411837]
[1724910011279,6.9223,144.46,144.38,1.38411837]
[1724910011576,20.0,144.45,144.38,1.38411837]
[1724910012377,20.0,144.45,144.37,22.9453]
[1724910012583,20.0,144.45,144.38,1.38506748]
[1724910013978,33.00600377,144.45,144.37,22.9453]
[1724910014393,20.0,144.45,144.37,22.9453]
[1724910014598,33.00600377,144.45,144.37,24.33042391]
[1724910014975,20.0,144.45,144.39,15.6057]
[1724910015202,1.20675801,144.47,144.4,1.38485288]
[1724910015401,20.0,144.47,144.4,1.38485288]
[1724910015781,19.92740377,144.48,144.4,1.38485288]
[1724910015981,19.92740377,144.48,144.39,15.6057]
[1724910016322,13.00600377,144.46,144.39,15.6057]
[1724910017195,13.00600377,144.44,144.39,15.6057]
[1724910019205,45.12549,144.47,144.39,15.6057]
[1724910019206,13.00600377,144.42,144.39,15.6057]
[1724910020896,19.93020377,144.42,144.37,6.312]
[1724910022506,6.9242,144.42,144.37,6.312]
[1724910022685,19.93020377,144.42,144.37,6.312]
[1724910022886,13.00600377,144.42,144.37,6.312]
[1724910023296,0.12549,144.43,144.37,6.312]
[1724910023501,13.00600377,144.43,144.37,6.312]
[1724910023882,13.00600377,144.41,144.37,6.312]
[1724910024082,19.93080377,144.41,144.37,6.312]
[1724910024292,13.00600377,144.39,144.33,22.6956]
[1724910024498,13.00600377,144.37,144.33,22.6956]
[1724910025487,19.93180377,144.39,144.33,22.6956]
[1724910026107,6.9264,144.38,144.33,22.6956]
[1724910026298,13.00600377,144.37,144.33,22.6956]
[1724910026985,19.93260377,144.37,144.33,22.6956]
[1724910028187,0.12549,144.4,144.33,22.6956]
[1724910028508,19.93200377,144.39,144.33,22.6956]
[1724910029003,19.93260377,144.37,144.33,16.0486]
[1724910030104,13.00600377,144.35,144.3,21.7783]
[1724910032495,19.93390377,144.35,144.3,21.7783]
[1724910033095,13.00600377,144.33,144.3,21.7783]
[1724910033304,13.00600377,144.33,144.3,15.2738]
[1724910033812,19.93460377,144.33,144.3,15.2738]
[1724910034306,13.00600377,144.33,144.3,15.2738]
[1724910035201,19.93370377,144.35,144.3,15.2738]
[1724910036016,21.14155223,144.35,144.3,15.2738]
[1724910036195,8.13554846,144.35,144.3,15.2738]
[1724910036404,13.00600377,144.33,144.24,15.4658]
[1724910036591,13.00600377,144.27,144.24,15.4658]
[1724910036903,13.00600377,144.25,144.2,15.9487]
[1724910037099,19.93840377,144.25,144.2,15.9487]
[1724910037834,13.00600377,144.23,144.2,15.9487]
[1724910038793,13.00600377,144.24,144.2,15.9487]
[1724910039899,13.00600377,144.22,144.16,16.0385]
[1724910040207,20.12549,144.23,144.16,16.0385]
[1724910040208,13.00600377,144.2,144.16,16.0385]
[1724910041311,13.00600377,144.2,144.16,22.9751]
[1724910042414,13.00600377,144.18,144.1,22.2228]
[1724910042597,19.94170377,144.18,144.13,6.938]
[1724910044019,52.06179,144.17,144.13,6.938]
[1724910044216,52.06179,144.17,144.12,6.9386]
[1724910044602,6.9369,144.16,144.1,22.2228]
[1724910044804,6.9369,144.16,144.12,6.9386]
[1724910045105,52.06179,144.17,144.12,6.9386]
[1724910050808,32.43491889,144.14,144.06,22.5926]
[1724910051015,52.06369,144.13,144.07,6.9409]
[1724910051314,39.49910889,144.12,144.06,23.517]
[1724910051520,39.49910889,144.12,144.07,6.941]
[1724910051815,39.37361889,144.12,144.07,6.941]
[1724910052025,52.19028,144.11,144.06,23.5168]
[1724910052328,6.9396,144.1,144.06,16.5756]
[1724910052836,52.06459,144.11,144.06,23.517]
[1724910053003,6.9391,144.11,144.07,6.941]
[1724910053609,39.37361889,144.12,144.07,6.941]
[1724910053800,6.9387,144.12,144.07,6.941]
[1724910054315,7.06359,144.13,144.08,6.9402]
[1724910054518,65.0,144.12,144.08,6.9402]
[1724910055009,71.9386,144.12,144.07,6.9409]
[1724910055932,71.9386,144.12,144.08,6.9405]
[1724910056101,26.9386,144.12,144.08,6.9405]
[1724910057426,20.0,144.12,144.08,6.9405]
[1724910057723,20.0,144.12,144.09,6.9396]
[1724910057924,1.20974955,144.13,144.11,6.9391]
[1724910058100,6.9371,144.16,144.11,6.9391]
[1724910058304,1.20934704,144.16,144.08,7.75623005]
[1724910058515,39.37101889,144.18,144.13,6.9378]
[1724910058822,40.58040682,144.18,144.13,6.9378]
[1724910059514,40.58040682,144.18,144.08,6.3683]
[1724910059515,6.9376,144.15,144.08,6.3683]
[1724910059721,6.9367,144.16,144.11,6.9391]
[1724910060305,6.9372,144.15,144.11,6.9391]
[1724910060827,6.9372,144.15,144.08,6.3683]
[1724910061806,6.938,144.14,144.08,6.3683]
[1724910062009,45.25098,144.13,144.06,16.5756]
[1724910062204,6.9386,144.12,144.08,6.9404]
[1724910063223,6.9382,144.13,144.09,6.94]
[1724910063424,39.37271889,144.14,144.09,6.94]
[1724910063621,20.0,144.13,144.09,6.94]
[1724910064129,45.12549,144.12,144.08,6.9405]
[1724910064426,52.06419,144.12,144.08,6.9405]
[1724910064615,52.06419,144.12,144.06,16.5756]
[1724910064929,6.9391,144.11,144.06,16.5756]
[1724910065106,6.9391,144.11,144.07,6.941]
[1724910065306,6.9397,144.1,144.06,23.517]
[1724910065511,77.56040889,144.12,144.06,23.517]
[1724910066233,6.9395,144.11,144.06,6.9414]
[1724910067417,7.06519,144.1,144.05,6.9418]
[1724910067723,39.37461889,144.1,144.05,6.9418]
[1724910069918,6.9397,144.1,144.06,6.9414]
[1724910074322,39.37461889,144.1,144.06,6.9413]
[1724910074723,6.9392,144.11,144.07,6.9407]
[1724910074917,65.12549,144.1,144.07,6.9407]
[1724910075124,65.12549,144.1,144.06,6.9414]
[1724910075359,72.06519,144.1,144.06,6.9414]
[1724910076036,85.05138998,144.1,144.06,6.9414]
[1724910077128,6.9401,144.09,144.05,6.9419]
[1724910077433,12.98619998,144.08,144.05,6.9419]
[1724910083632,19.92679998,144.08,144.04,6.9424]
[1724910085637,12.98619998,144.08,144.05,6.942]
[1724910086960,1.21002897,144.09,144.02,28.34399998]
[1724910087231,20.0,144.1,144.06,6.9414]
[1724910087944,20.0,144.1,144.07,6.9409]
[1724910090626,20.0,144.1,144.02,28.34399998]
[1724910090627,1.20977388,144.11,144.04,12.98619998]
[1724910090932,65.0,144.12,144.04,12.98619998]
[1724910092434,65.0,144.12,144.09,6.94]
[1724910093820,1.20959385,144.13,144.12,6.9386]
[1724910094147,69.92319998,144.16,144.06,18.99809998]
[1724910094148,69.92319998,144.16,144.11,6.939]
[1724910094321,21.13264315,144.16,144.11,6.939]
[1724910095544,45.12549,144.15,144.11,6.939]
[1724910095750,45.0,144.15,144.11,6.939]
[1724910096247,1.20944317,144.16,144.14,6.9372]
[1724910096548,36.60205179,144.19,144.08,14.28081897]
[1724910096719,36.60205179,144.19,144.13,6.938]
[1724910096720,28.14534318,144.18,144.13,6.938]
[1724910097745,45.12549,144.17,144.13,6.938]
[1724910099545,45.0,144.17,144.13,6.938]
[1724910099840,21.33473318,144.18,144.1,12.98619998]
[1724910100343,21.33473318,144.18,144.15,6.9371]
[1724910100344,0.12549,144.18,144.15,6.9371]
[1724910100930,23.3492,144.2,144.15,6.9371]
[1724910101132,0.25098,144.19,144.15,6.9371]
[1724910101334,65.25098,144.19,144.15,6.9371]
[1724910101646,65.25098,144.19,143.92,14.44035167]
[1724910101647,12.98619998,144.17,144.09,15.3749]
[1724910102223,12.98619998,144.15,144.11,6.939]
[1724910102434,19.92349998,144.15,144.1,6.9395]
[1724910102935,19.92349998,144.15,144.11,6.939]
[1724910104141,6.9373,144.15,144.11,6.939]
[1724910104644,7.06229,144.16,144.11,6.939]
[1724910104840,45.0,144.15,144.11,6.939]
[1724910106529,7.06229,144.16,144.12,6.9384]
[1724910106837,0.12549,144.16,144.12,6.9384]
[1724910107036,65.12549,144.16,144.12,6.9384]
[1724910107240,65.12549,144.16,144.09,15.3749]
[1724910107550,65.12549,144.16,144.12,6.9385]
[1724910108550,72.06219,144.16,144.12,6.9385]
[1724910114937,1.20910678,144.2,144.1,33.82686533]
[1724910115133,1.20910678,144.2,144.11,1.38554362]
[1724910115552,6.9357,144.18,144.13,6.9381]
[1724910115853,39.37652555,144.19,144.14,6.9376]
[1724910116234,45.0,144.18,144.15,6.937]
[1724910117232,45.0,144.18,144.09,15.3749]
[1724910117446,45.0,144.18,144.16,6.9366]
[1724910117750,0.12549,144.19,144.16,6.9366]
[1724910117951,65.12549,144.19,144.16,6.9366]
[1724910119136,65.12549,144.19,144.15,6.937]
[1724910121839,65.12549,144.19,144.16,6.9365]
[1724910122044,20.12549,144.19,144.16,6.9365]
[1724910127874,0.12549,144.19,144.17,6.9362]
[1724910128845,0.12549,144.19,144.16,6.9365]
[1724910130157,66.20910678,144.2,144.17,6.9359]
[1724910130361,12.96809925,144.22,144.14,12.96809925]
[1724910130559,20.0,144.21,144.18,6.9356]
[1724910135155,20.0,144.21,144.19,6.9352]
[1724910135334,20.0,144.21,144.18,6.9356]
[1724910136363,20.0,144.21,144.14,12.96809925]
[1724910136364,1.20895712,144.22,144.21,6.9343]
[1724910136541,6.9327,144.25,144.2,6.9346]
[1724910137164,6.9327,144.25,144.17,1.38708621]
[1724910137342,8.14064489,144.26,144.18,14.35499304]
[1724910137543,8.14064489,144.26,144.18,12.96809925]
[1724910138162,20.0,144.25,144.18,12.96809925]
[1724910138552,39.90059925,144.25,144.16,12.96809925]
[1724910139455,6.9337,144.23,144.14,28.60449925]
[1724910139762,45.12549,144.22,144.14,28.60449925]
[1724910140444,45.12549,144.22,144.14,15.6364]
[1724910140644,26.9346,144.21,144.14,15.6364]
[1724910141448,26.9346,144.21,144.06,51.872397]
[1724910141449,7.06029,144.2,144.1,15.0416]
[1724910141654,7.06029,144.2,144.12,19.08169925]
[1724910142265,7.06029,144.2,144.16,6.9363]
[1724910142449,7.06029,144.2,144.15,6.9371]
[1724910143452,12.96809925,144.17,144.1,15.0416]
[1724910143654,19.90439925,144.17,144.12,6.9385]
[1724910143866,20.0,144.16,144.12,6.9385]
[1724910144265,20.0,144.16,144.13,6.938]
[1724910144447,20.0,144.16,144.09,12.96809925]
[1724910144647,26.9363,144.17,144.12,6.9382]
[1724910146449,26.9363,144.17,144.09,12.96809925]
[1724910146450,20.0,144.17,144.14,6.9376]
[1724910146780,20.0,144.18,144.14,6.9376]
[1724910148951,20.0,144.18,144.11,12.96809925]
[1724910148952,20.0,144.18,144.15,6.9371]
[1724910151859,20.0,144.18,144.14,6.9375]
[1724910155378,20.0,144.18,144.15,6.9371]
[1724910156088,20.0,144.18,144.08,3.01752927]
[1724910156265,26.9359,144.18,144.13,6.9377]
[1724910156467,26.9359,144.18,144.14,6.9376]
[1724910157157,1.2090573,144.2,144.19,6.9352]
[1724910157357,15.4011,144.22,144.19,6.9352]
[1724910157571,15.4011,144.22,144.12,16.2937]
[1724910157572,12.96809925,144.2,144.12,16.2937]
[1724910157783,6.9354,144.19,144.12,16.2937]
[1724910158959,20.0,144.18,144.12,16.2937]
[1724910159165,20.0,144.18,144.15,6.9372]
[1724910160782,20.0,144.18,144.14,6.9376]
[1724910161077,20.0,144.18,144.15,6.9371]
[1724910163476,1.20909202,144.21,144.13,12.96809925]
[1724910163659,28.8681,144.22,144.13,12.96809925]
[1724910164783,28.8681,144.22,144.14,1.38730475]
[1724910165281,28.8681,144.22,144.18,6.9357]
[1724910165869,20.0,144.21,144.18,6.9357]
[1724910168959,20.0,144.21,144.17,6.9361]
[1724910169860,39.90239925,144.21,144.17,6.9361]
[1724910173283,39.90239925,144.21,144.13,12.96809925]
[1724910173284,20.0,144.21,144.18,6.9355]
[1724910174383,20.0,144.21,144.19,6.9351]
[1724910174590,20.0,144.23,144.19,6.9351]
[1724910175787,26.9333,144.23,144.19,6.9351]
[1724910176667,26.9333,144.23,144.16,1.38473961]
[1724910176668,20.0,144.23,144.16,1.38473961]
[1724910176872,1.20870512,144.25,144.17,29.24419925]
[1724910176873,20.0,144.25,144.17,29.24419925]
[1724910177069,6.9324,144.25,144.17,29.24419925]
[1724910177287,19.90049925,144.25,144.17,29.24419925]
[1724910178386,20.0,144.24,144.17,29.24419925]
[1724910180467,20.0,144.25,144.17,29.24419925]
[1724910180888,26.932,144.26,144.17,29.24419925]